{"text_format":"1","workbook":"xlsx","n_sheets":3,"sheets":["Лист1","Лист3","Лист2"],"not_rendered":{"charts":0,"images":0,"macros":1,"external_links":0,"defined_names":1,"comments":0,"pivot_tables":0},"unopened":[],"bounds":{"document_bytes":16777216,"sheet_cells":100000,"rows_first":2000,"rows_last":500,"rows_between":2000,"halvings":0,"cell_chars":16384,"cell_head_chars":4096},"cells_cut":0,"cells_raw":0,"read":"whole","date_system":"1900"}

{"sheet":"Лист1","index":0,"n_rows":100,"n_cols":6,"rows_kept":100,"cut":false,"hidden":false,"merged":[]}
["Маркадетали","Номердеталипокаталогу","Марказамены","Номерзаменыпокаталогу","Название"]
["FAG",713678950,"KEMPTNER","KR713678950","Подшипник передней ступицы перед.   Ford Focus III с 2011 г. C- Max II с 2010 г. Kuga 08-"]
["Hyundai / KIA","664004L300","KEMPTNER","KR664004L300","капот SOLARIS [SB] 14-17     664004L300","Капот SOLARIS/ACCENT IV (2014>) "]
["JAGUAR","C2D23552","KEMPTNER","KRC2D23552","AirBagJaguarXFC2D23552","Пиропатрон КАПОТА JAGUAR XJ (2009>) "]
["FORD",1530582,"KEMPTNER","KR1530582","CкобасуппортазаднегоправогоTransit2.401>","Скоба суппорта заднего правого FORD EUROPA TRANSIT (2006>) "]
["FORWARD","FDF0C98640X","KEMPTNER","KRFDF0C98640X","FOCUSБАМПЕРЗАДН(ХЭТЧБЭК)ГРУНТ98-00"]
["FORWARD","FDFOC98330","KEMPTNER","KRFDFOC98330","FOCUSКАПОТ98-"]
["FORWARD","FDF0C98271L","KEMPTNER","KRFDF0C98271L","FOCUSКРЫЛОПЕРЕДНЛЕВБЕЗОТВП/ПОВТОРИТЕЛЬ(USA)"]
["FORWARD","FDF0C98271R","KEMPTNER","KRFDF0C98271R","FOCUSКРЫЛОПЕРЕДНПРАВБЕЗОТВП/ПОВТОРИТЕЛЬ(USA)"]
["FORWARD","FDFOC98240","KEMPTNER","KRFDFOC98240","FOCUSУСИЛИТЕЛЬБАМПЕРАПЕРЕДН"]
["honda","12251PM7003","KEMPTNER","12251PM7003","HONDA-Прокладка ГБЦ","HONDA Прокладка головки блока цилиндров"]
["honda","12251PM7003","KEMPTNER","12251PM7003","HONDA-Прокладка ГБЦ","HONDA Прокладка головки блока цилиндров"]
["Ajusa",10075600,"KEMPTNER","KR12251PM7003","HONDA-ПрокладкаГБЦ","HONDA Прокладка головки блока цилиндров"]
["Autowelt","HG35110","KEMPTNER","KR12251PM7003","HONDA-ПрокладкаГБЦ","HONDA Прокладка головки блока цилиндров"]
["Elwis",31517,"KEMPTNER","KR12251PM7003","HONDA-ПрокладкаГБЦ","HONDA Прокладка головки блока цилиндров"]
["Honda","12251PM7003","KEMPTNER","KR12251PM7003","HONDA-ПрокладкаГБЦ","HONDA Прокладка головки блока цилиндров"]
["FORD",1589071,"KEMPTNER","KR1589071","KронштейнзаднегобампералевыйFocus208-11"," Кронштейн заднего бампера Ford Focus 2008-11"]
["FORD",1589069,"KEMPTNER","KR1589069","KронштейнзаднегобампераправыйFocus208-11"," Кронштейн заднего бампера Ford Focus 2008-11"]
["Honda","38924RNAA01","KEMPTNER","KR38924RNAA01","L023КАТУШКАКОМПРЕССОРАКОНДИЦИОНЕРАHONDACIVIC(06-…)","Муфта компрессора кондиционера HONDA CIVIC 5D (2006-2012) "]
["Honda","38924RZVG01","KEMPTNER","KR38924RZVG01","L145КАТУШКАКОМПРЕССОРАКОНДИЦИОНЕРАHONDACR-V(07-…)","Муфта компрессора кондиционера HONDA CR-V (2007>) "]
["MAZDA","GY0113ZE0","KEMPTNER","KRGY0113ZE0","MAZDAФильтртопливный[вбак]MZMPV'97-02","Фильтр топливный MAZDA 323 (BJ) (1998-2002) "]
["FORWARD","FDM0N97270L","KEMPTNER","KRFDM0N97270L","MONDEOКРЫЛОПЕРЕДНЕЕЛЕВ.","Ford Mondeo крыло переднее левое"]
["MAZDA","BN9R32600C","KEMPTNER","KRBN9R32600C","MotorherzНасосгурmazda3","Насос гидроусилителя см р/к MA8001KIT MAZDA 3 "]
["MAZDA","BN9R32600D","KEMPTNER","KRBN9R32600D","MotorherzНасосгурmazda3","Насос гидроусилителя см р/к MA8001KIT MAZDA 3 "]
["MAZDA","BP4M32600A","KEMPTNER","KRBP4M32600A","MotorherzНасосгурmazda3","Насос гидроусилителя см р/к MA8001KIT MAZDA 3 "]
["ATG","442PS35","KEMPTNER","KR9064600200","Pейка pулевая MB Sprinter(906),VW Crafter  8193004","Рейка рулевая MERCEDES BENZ SPRINTER (2006>), VW Crafter"]
["Chrysler","68012180AA","KEMPTNER","KR9064600200","Pейка pулевая MB Sprinter(906),VW Crafter  8193004","Рейка рулевая MERCEDES BENZ SPRINTER (2006>), VW Crafter"]
["Daimler AG","A9064600200","KEMPTNER","KR9064600200","Pейка pулевая MB Sprinter(906),VW Crafter  8193004","Рейка рулевая MERCEDES BENZ SPRINTER (2006>), VW Crafter"]
["Daimler AG",9064600200,"KEMPTNER","KR9064600200","Pейка pулевая MB Sprinter(906),VW Crafter  8193004","Рейка рулевая MERCEDES BENZ SPRINTER (2006>), VW Crafter"]
["Daimler AG","A9064600200","KEMPTNER","KR9064600200","Pейка pулевая MB Sprinter(906),VW Crafter  8193004","Рейка рулевая MERCEDES BENZ SPRINTER (2006>), VW Crafter"]
["Daimler AG",9064600200,"KEMPTNER","KR9064600200","Pейка pулевая MB Sprinter(906),VW Crafter  8193004","Рейка рулевая MERCEDES BENZ SPRINTER (2006>), VW Crafter"]
["Daimler AG","9064600200","KEMPTNER","KR9064600200","Pейка pулевая MB Sprinter(906),VW Crafter  8193004","Рейка рулевая MERCEDES BENZ SPRINTER (2006>), VW Crafter"]
["Daimler AG","A9064600200","KEMPTNER","KR9064600200","Pейка pулевая MB Sprinter(906),VW Crafter  8193004","Рейка рулевая MERCEDES BENZ SPRINTER (2006>), VW Crafter"]
["Daimler AG","A906460130080","KEMPTNER","KR9064600200","Pейка pулевая MB Sprinter(906),VW Crafter  8193004","Рейка рулевая MERCEDES BENZ SPRINTER (2006>), VW Crafter"]
["Daimler AG","A906460080080","KEMPTNER","KR9064600200","Pейка pулевая MB Sprinter(906),VW Crafter  8193004","Рейка рулевая MERCEDES BENZ SPRINTER (2006>), VW Crafter"]
["Daimler AG","A906460060080","KEMPTNER","KR9064600200","Pейка pулевая MB Sprinter(906),VW Crafter  8193004","Рейка рулевая MERCEDES BENZ SPRINTER (2006>), VW Crafter"]
["Daimler AG"," A906460040080","KEMPTNER","KR9064600200","Pейка pулевая MB Sprinter(906),VW Crafter  8193004","Рейка рулевая MERCEDES BENZ SPRINTER (2006>), VW Crafter"]
["Daimler AG","9064601300","KEMPTNER","KR9064600200","Pейка pулевая MB Sprinter(906),VW Crafter  8193004","Рейка рулевая MERCEDES BENZ SPRINTER (2006>), VW Crafter"]
["Fenox","SR17210","KEMPTNER","KR9064600200","Pейка pулевая MB Sprinter(906),VW Crafter  8193004","Рейка рулевая MERCEDES BENZ SPRINTER (2006>), VW Crafter"]
["General Ricambi","ME9035","KEMPTNER","KR9064600200","Pейка pулевая MB Sprinter(906),VW Crafter  8193004","Рейка рулевая MERCEDES BENZ SPRINTER (2006>), VW Crafter"]
["GS","2GS4435","KEMPTNER","KR9064600200","Pейка pулевая MB Sprinter(906),VW Crafter  8193004","Рейка рулевая MERCEDES BENZ SPRINTER (2006>), VW Crafter"]
["GS","2GS4435C","KEMPTNER","KR9064600200","Pейка pулевая MB Sprinter(906),VW Crafter  8193004","Рейка рулевая MERCEDES BENZ SPRINTER (2006>), VW Crafter"]
["JP Group","1144300900","KEMPTNER","KR9064600200","Pейка pулевая MB Sprinter(906),VW Crafter  8193004","Рейка рулевая MERCEDES BENZ SPRINTER (2006>), VW Crafter"]
["Lauber","662982","KEMPTNER","KR9064600200","Pейка pулевая MB Sprinter(906),VW Crafter  8193004","Рейка рулевая MERCEDES BENZ SPRINTER (2006>), VW Crafter"]
["Mercedes","A9064600200","KEMPTNER","KR9064600200","Pейка pулевая MB Sprinter(906),VW Crafter  8193004","Рейка рулевая MERCEDES BENZ SPRINTER (2006>), VW Crafter"]
["Mercedes",9064600200,"KEMPTNER","KR9064600200","Pейка pулевая MB Sprinter(906),VW Crafter  8193004","Рейка рулевая MERCEDES BENZ SPRINTER (2006>), VW Crafter"]
["Mercedes","A9064600200","KEMPTNER","KR9064600200","Pейка pулевая MB Sprinter(906),VW Crafter  8193004","Рейка рулевая MERCEDES BENZ SPRINTER (2006>), VW Crafter"]
["Mercedes",9064600200,"KEMPTNER","KR9064600200","Pейка pулевая MB Sprinter(906),VW Crafter  8193004","Рейка рулевая MERCEDES BENZ SPRINTER (2006>), VW Crafter"]
["Motorherz","R21401NW","KEMPTNER","KR9064600200","Pейка pулевая MB Sprinter(906),VW Crafter  8193004","Рейка рулевая MERCEDES BENZ SPRINTER (2006>), VW Crafter"]
["Murato","8193004M","KEMPTNER","KR9064600200","Pейка pулевая MB Sprinter(906),VW Crafter  8193004","Рейка рулевая MERCEDES BENZ SPRINTER (2006>), VW Crafter"]
["Reikanen","R1617","KEMPTNER","KR9064600200","Pейка pулевая MB Sprinter(906),VW Crafter  8193004","Рейка рулевая MERCEDES BENZ SPRINTER (2006>), VW Crafter"]
["SAT","STA9064600200","KEMPTNER","KR9064600200","Pейка pулевая MB Sprinter(906),VW Crafter  8193004","Рейка рулевая MERCEDES BENZ SPRINTER (2006>), VW Crafter"]
["TRW","JRP1010","KEMPTNER","KR9064600200","Pейка pулевая MB Sprinter(906),VW Crafter  8193004","Рейка рулевая MERCEDES BENZ SPRINTER (2006>), VW Crafter"]
["VAG","2E1419061","KEMPTNER","KR9064600200","Pейка pулевая MB Sprinter(906),VW Crafter  8193004","Рейка рулевая MERCEDES BENZ SPRINTER (2006>), VW Crafter"]
["VAG","2E1419061A","KEMPTNER","KR9064600200","Pейка pулевая MB Sprinter(906),VW Crafter  8193004","Рейка рулевая MERCEDES BENZ SPRINTER (2006>), VW Crafter"]
["VAG","2E1419061B","KEMPTNER","KR9064600200","Pейка pулевая MB Sprinter(906),VW Crafter  8193004","Рейка рулевая MERCEDES BENZ SPRINTER (2006>), VW Crafter"]
["VAG","2E1419061BX","KEMPTNER","KR9064600200","Pейка pулевая MB Sprinter(906),VW Crafter  8193004","Рейка рулевая MERCEDES BENZ SPRINTER (2006>), VW Crafter"]
["VAG","2E1419061C","KEMPTNER","KR9064600200","Pейка pулевая MB Sprinter(906),VW Crafter  8193004","Рейка рулевая MERCEDES BENZ SPRINTER (2006>), VW Crafter"]
["VAG","2E1419061CX","KEMPTNER","KR9064600200","Pейка pулевая MB Sprinter(906),VW Crafter  8193004","Рейка рулевая MERCEDES BENZ SPRINTER (2006>), VW Crafter"]
["VAG","2E1419061D","KEMPTNER","KR9064600200","Pейка pулевая MB Sprinter(906),VW Crafter  8193004","Рейка рулевая MERCEDES BENZ SPRINTER (2006>), VW Crafter"]
["VAG","2E1419061DX","KEMPTNER","KR9064600200","Pейка pулевая MB Sprinter(906),VW Crafter  8193004","Рейка рулевая MERCEDES BENZ SPRINTER (2006>), VW Crafter"]
["Daimler AG",6394601000,"KEMPTNER","KR6394601000","Pейка pулевая MB Vito, Viano   8193016","Рейка рулевая MERCEDES BENZ VITO (2003>)/VIANO (2003>)"]
["Daimler AG","A6394601000","KEMPTNER","KR6394601000","Pейка pулевая MB Vito, Viano   8193016","Рейка рулевая MERCEDES BENZ VITO (2003>)/VIANO (2003>)"]
["Daimler AG",6394601000,"KEMPTNER","KR6394601000","Pейка pулевая MB Vito, Viano   8193016","Рейка рулевая MERCEDES BENZ VITO (2003>)/VIANO (2003>)"]
["Daimler AG","A6394601000","KEMPTNER","KR6394601000","Pейка pулевая MB Vito, Viano   8193016","Рейка рулевая MERCEDES BENZ VITO (2003>)/VIANO (2003>)"]
["Mercedes",6394601000,"KEMPTNER","KR6394601000","Pейка pулевая MB Vito, Viano   8193016","Рейка рулевая MERCEDES BENZ VITO (2003>)/VIANO (2003>)"]
["Mercedes","A6394601000","KEMPTNER","KR6394601000","Pейка pулевая MB Vito, Viano   8193016","Рейка рулевая MERCEDES BENZ VITO (2003>)/VIANO (2003>)"]
["Mercedes",6394601000,"KEMPTNER","KR6394601000","Pейка pулевая MB Vito, Viano   8193016","Рейка рулевая MERCEDES BENZ VITO (2003>)/VIANO (2003>)"]
["Mercedes","A6394601000","KEMPTNER","KR6394601000","Pейка pулевая MB Vito, Viano   8193016","Рейка рулевая MERCEDES BENZ VITO (2003>)/VIANO (2003>)"]
["nissan","490019W50A","KEMPTNER","KR490019W50A","Pейка pулевая Nissan Teana I (J31)  8198009","Рейка рулевая NISSAN TEANA J31 (2006-2008) "]
["nissan","490019W50c","KEMPTNER","KR490019W50A","Pейка pулевая Nissan Teana I (J31)  8198009","Рейка рулевая NISSAN TEANA J31 (2006-2008) "]
["nissan","490019W50A","KEMPTNER","KR490019W50A","Pейка pулевая Nissan Teana I (J31)  8198009","Рейка рулевая NISSAN TEANA J31 (2006-2008) "]
["nissan","490019W50c","KEMPTNER","KR490019W50A","Pейка pулевая Nissan Teana I (J31)  8198009","Рейка рулевая NISSAN TEANA J31 (2006-2008) "]
["renault","490019W50A","KEMPTNER","KR490019W50A","Pейка pулевая Nissan Teana I (J31)  8198009","Рейка рулевая NISSAN TEANA J31 (2006-2008) "]
["renault","490019W50A","KEMPTNER","KR490019W50A","Pейка pулевая Nissan Teana I (J31)  8198009","Рейка рулевая NISSAN TEANA J31 (2006-2008) "]
["nissan",6900001464,"KEMPTNER","KR6900001464","Pейка pулевая Nissan Tiida 6900001464","Pейка pулевая Nissan Tiida 6900001464"]
["nissan",6900001464,"KEMPTNER","KR6900001464","Pейка pулевая Nissan Tiida 6900001464","Pейка pулевая Nissan Tiida 6900001464"]
["renault",6900001464,"KEMPTNER","KR6900001464","Pейка pулевая Nissan Tiida 6900001464","Pейка pулевая Nissan Tiida 6900001464"]
["renault",6900001464,"KEMPTNER","KR6900001464","Pейка pулевая Nissan Tiida 6900001464","Pейка pулевая Nissan Tiida 6900001464"]
["General Motors",900085,"KEMPTNER","KR900085","Pейка pулевая Opel ASTRA-J 2010-","Pейка pулевая Opel ASTRA-J 2010-, Chevrolet Cruze"]
["General Motors",13330663,"KEMPTNER","KR900085","Pейка pулевая Opel ASTRA-J 2010-","Pейка pулевая Opel ASTRA-J 2010-, Chevrolet Cruze"]
["General Motors",900085,"KEMPTNER","KR900085","Pейка pулевая Opel ASTRA-J 2010-","Pейка pулевая Opel ASTRA-J 2010-, Chevrolet Cruze"]
["General Motors",13330663,"KEMPTNER","KR900085","Pейка pулевая Opel ASTRA-J 2010-","Pейка pулевая Opel ASTRA-J 2010-, Chevrolet Cruze"]
["renault",7955501009,"KEMPTNER","KR7955501009","Pейка pулевая Renault Megane II  Renault Scenic II","Рейка рулевая RENAULT MEGANE II (2002>)/ SCENIC (2003>)"]
["renault",7955501009,"KEMPTNER","KR7955501009","Pейка pулевая Renault Megane II  Renault Scenic II","Рейка рулевая RENAULT MEGANE II (2002>)/ SCENIC (2003>)"]
["Alfi Parts","PS1009","KEMPTNER","KR4550002130","Pейка pулевая Toyota Corolla Auris  4550002130","Рейка рулевая под электроусилитель TOYOTA AURIS (2006>)/ COROLLA E15 (2006>) "]
["ATG","671PS20","KEMPTNER","KR4550002130","Pейка pулевая Toyota Corolla Auris  4550002130","Рейка рулевая под электроусилитель TOYOTA AURIS (2006>)/ COROLLA E15 (2006>) "]
["Fenox","SR16224","KEMPTNER","KR4550002130","Pейка pулевая Toyota Corolla Auris  4550002130","Рейка рулевая под электроусилитель TOYOTA AURIS (2006>)/ COROLLA E15 (2006>) "]
["GS","1GS6720C","KEMPTNER","KR4550002130","Pейка pулевая Toyota Corolla Auris  4550002130","Рейка рулевая под электроусилитель TOYOTA AURIS (2006>)/ COROLLA E15 (2006>) "]
["GS","1GS7904","KEMPTNER","KR4550002130","Pейка pулевая Toyota Corolla Auris  4550002130","Рейка рулевая под электроусилитель TOYOTA AURIS (2006>)/ COROLLA E15 (2006>) "]
["HDE","8195018","KEMPTNER","KR4550002130","Pейка pулевая Toyota Corolla Auris  4550002130","Рейка рулевая под электроусилитель TOYOTA AURIS (2006>)/ COROLLA E15 (2006>) "]
["Jtec","JTC609","KEMPTNER","KR4550002130","Pейка pулевая Toyota Corolla Auris  4550002130","Рейка рулевая под электроусилитель TOYOTA AURIS (2006>)/ COROLLA E15 (2006>) "]
["Motorherz","M50271NW","KEMPTNER","KR4550002130","Pейка pулевая Toyota Corolla Auris  4550002130","Рейка рулевая под электроусилитель TOYOTA AURIS (2006>)/ COROLLA E15 (2006>) "]
["Motorherz","M50271RB","KEMPTNER","KR4550002130","Pейка pулевая Toyota Corolla Auris  4550002130","Рейка рулевая под электроусилитель TOYOTA AURIS (2006>)/ COROLLA E15 (2006>) "]
["toyota",4550002130,"KEMPTNER","KR4550002130","Pейка pулевая Toyota Corolla Auris  4550002130","Рейка рулевая под электроусилитель TOYOTA AURIS (2006>)/ COROLLA E15 (2006>) "]
["toyota",4550002130,"KEMPTNER","KR4550002130","Pейка pулевая Toyota Corolla Auris  4550002130","Рейка рулевая под электроусилитель TOYOTA AURIS (2006>)/ COROLLA E15 (2006>) "]
["Toyota","4550002130","KEMPTNER","KR4550002130","Pейка pулевая Toyota Corolla Auris  4550002130","Рейка рулевая под электроусилитель TOYOTA AURIS (2006>)/ COROLLA E15 (2006>) "]
["Toyota","4551012391","KEMPTNER","KR4550002130","Pейка pулевая Toyota Corolla Auris  4550002130","Рейка рулевая под электроусилитель TOYOTA AURIS (2006>)/ COROLLA E15 (2006>) "]
["Toyota","4550002300","KEMPTNER","KR4550002130","Pейка pулевая Toyota Corolla Auris  4550002130","Рейка рулевая под электроусилитель TOYOTA AURIS (2006>)/ COROLLA E15 (2006>) "]
["Toyota","4551002390","KEMPTNER","KR4550002130","Pейка pулевая Toyota Corolla Auris  4550002130","Рейка рулевая под электроусилитель TOYOTA AURIS (2006>)/ COROLLA E15 (2006>) "]

{"sheet":"Лист3","index":1,"n_rows":28,"n_cols":2,"rows_kept":28,"cut":false,"hidden":false,"merged":[]}
["Номерзаменыпокаталогу"]
["KR713678950",{"$f":"ertert(A2,Лист1!$A$1:$D$100,4,2,\", \")","v":"713678950"}]
["KR664004L300",{"$f":"ertert(A3,Лист1!$A$1:$D$100,4,2,\", \")","v":"664004L300"}]
["KRC2D23552",{"$f":"ertert(A4,Лист1!$A$1:$D$100,4,2,\", \")","v":"C2D23552"}]
["KR1530582",{"$f":"ertert(A5,Лист1!$A$1:$D$100,4,2,\", \")","v":"1530582"}]
["KRFDF0C98640X",{"$f":"ertert(A6,Лист1!$A$1:$D$100,4,2,\", \")","v":"FDF0C98640X"}]
["KRFDFOC98330",{"$f":"ertert(A7,Лист1!$A$1:$D$100,4,2,\", \")","v":"FDFOC98330"}]
["KRFDF0C98271L",{"$f":"ertert(A8,Лист1!$A$1:$D$100,4,2,\", \")","v":"FDF0C98271L"}]
["KRFDF0C98271R",{"$f":"ertert(A9,Лист1!$A$1:$D$100,4,2,\", \")","v":"FDF0C98271R"}]
["KRFDFOC98240",{"$f":"ertert(A10,Лист1!$A$1:$D$100,4,2,\", \")","v":"FDFOC98240"}]
["12251PM7003",{"$f":"ertert(A11,Лист1!$A$1:$D$100,4,2,\", \")","v":"12251PM7003"}]
["KR12251PM7003",{"$f":"ertert(A12,Лист1!$A$1:$D$100,4,2,\", \")","v":"10075600, HG35110, 31517, 12251PM7003"}]
["KR1589071",{"$f":"ertert(A13,Лист1!$A$1:$D$100,4,2,\", \")","v":"1589071"}]
["KR1589069",{"$f":"ertert(A14,Лист1!$A$1:$D$100,4,2,\", \")","v":"1589069"}]
["KR38924RNAA01",{"$f":"ertert(A15,Лист1!$A$1:$D$100,4,2,\", \")","v":"38924RNAA01"}]
["KR38924RZVG01",{"$f":"ertert(A16,Лист1!$A$1:$D$100,4,2,\", \")","v":"38924RZVG01"}]
["KRGY0113ZE0",{"$f":"ertert(A17,Лист1!$A$1:$D$100,4,2,\", \")","v":"GY0113ZE0"}]
["KRFDM0N97270L",{"$f":"ertert(A18,Лист1!$A$1:$D$100,4,2,\", \")","v":"FDM0N97270L"}]
["KRBN9R32600C",{"$f":"ertert(A19,Лист1!$A$1:$D$100,4,2,\", \")","v":"BN9R32600C"}]
["KRBN9R32600D",{"$f":"ertert(A20,Лист1!$A$1:$D$100,4,2,\", \")","v":"BN9R32600D"}]
["KRBP4M32600A",{"$f":"ertert(A21,Лист1!$A$1:$D$100,4,2,\", \")","v":"BP4M32600A"}]
["KR9064600200",{"$f":"ertert(A22,Лист1!$A$1:$D$100,4,2,\", \")","v":"442PS35, 68012180AA, A9064600200, 9064600200, A906460130080, A906460080080, A906460060080,  A906460040080, 9064601300, SR17210, ME9035, 2GS4435, 2GS4435C, 1144300900, 662982, R21401NW, 8193004M, R1617, STA9064600200, JRP1010, 2E1419061, 2E1419061A, 2E1419061B, 2E1419061BX, 2E1419061C, 2E1419061CX, 2E1419061D, 2E1419061DX"}]
["KR6394601000",{"$f":"ertert(A23,Лист1!$A$1:$D$100,4,2,\", \")","v":"6394601000, A6394601000"}]
["KR490019W50A",{"$f":"ertert(A24,Лист1!$A$1:$D$100,4,2,\", \")","v":"490019W50A, 490019W50c"}]
["KR6900001464",{"$f":"ertert(A25,Лист1!$A$1:$D$100,4,2,\", \")","v":"6900001464"}]
["KR900085",{"$f":"ertert(A26,Лист1!$A$1:$D$100,4,2,\", \")","v":"900085, 13330663"}]
["KR7955501009",{"$f":"ertert(A27,Лист1!$A$1:$D$100,4,2,\", \")","v":"7955501009"}]
["KR4550002130",{"$f":"ertert(A28,Лист1!$A$1:$D$100,4,2,\", \")","v":"PS1009, 671PS20, SR16224, 1GS6720C, 1GS7904, 8195018, JTC609, M50271NW, M50271RB, 4550002130, 4551012391, 4550002300, 4551002390"}]

{"sheet":"Лист2","index":2,"n_rows":5,"n_cols":7,"rows_kept":5,"cut":false,"hidden":false,"merged":[]}
[null,null,"KEMPTNER","KR9064600200",null,null,"442PS35, 68012180AA,A9064600200,9064600200,A9064600200,9064600200,9064600200,A9064600200,A906460130080,A906460080080,A906460060080, A906460040080,9064601300,SR17210,ME9035,2GS4435,2GS4435C,1144300900,662982,A9064600200,9064600200,A9064600200,9064600200,R21401NW,8193004M,R1617,STA9064600200,JRP1010,2E1419061,2E1419061A,2E1419061B,2E1419061BX,2E1419061C,2E1419061CX,2E1419061D,2E1419061DX"]
[null,null,"KEMPTNER","KR6394601000",null,null,"6394601000,A6394601000,6394601000,A6394601000,6394601000,A6394601000,6394601000,A6394601000"]
[null,null,"KEMPTNER","KR490019W50A",null,null,"490019W50A,490019W50c,490019W50A,490019W50c,490019W50A,490019W50A"]
[null,null,"KEMPTNER","KR6900001464",null,null,6900001464]
[null,null,"KEMPTNER","KR900085",null,null,900085.13330662996]